{"text_format":"1","workbook":"xlsx","n_sheets":1,"sheets":["Tabelle1"],"not_rendered":{"charts":0,"images":0,"macros":1,"external_links":0,"defined_names":30,"comments":0,"pivot_tables":0},"unopened":[],"bounds":{"document_bytes":16777216,"sheet_cells":100000,"rows_first":2000,"rows_last":500,"rows_between":2000,"halvings":0,"cell_chars":16384,"cell_head_chars":4096},"cells_cut":0,"cells_raw":0,"read":"whole","date_system":"1900"}

{"sheet":"Tabelle1","index":0,"n_rows":16,"n_cols":7,"rows_kept":16,"cut":false,"hidden":false,"merged":[]}
[{"$f":"_xlfn.HSTACK(\"Zahl 1\",\"Zahl 2\",\"Zahl 3\",\"Zahl 4\",\"Zahl 5\",\"Zahl 6\",\"Zusatzzahl\")","v":"Zahl 1"},"Zahl 2","Zahl 3","Zahl 4","Zahl 5","Zahl 6","Zusatzzahl"]
[{"$f":"_xlfn.LET(_xlpm.xa,_xlfn.SEQUENCE(,45),_xlpm.xb,_xlfn.BYCOL(_xlpm.xa,_xlfn.LAMBDA(_xlpm.a,RAND())),_xlpm.xc,_xlfn.SEQUENCE(,10),_xlpm.xd,_xlfn.BYCOL(_xlpm.xc,_xlfn.LAMBDA(_xlpm.a,RAND())),_xlpm.xe,INDEX(_xlpm.xc,MATCH(MAX(_xlpm.xd),_xlpm.xd,0)),_xlfn.HSTACK(_xlfn._xlws.SORT(INDEX(_xlfn.SORTBY(_xlpm.xa,_xlpm.xb,1),,_xlfn.SEQUENCE(,6),1)),_xlpm.xe))","v":9},3,28,11,7,8,6]
[{"$f":"_xlfn.LET(_xlpm.xa,_xlfn.SEQUENCE(,45),_xlpm.xb,_xlfn.BYCOL(_xlpm.xa,_xlfn.LAMBDA(_xlpm.a,RAND())),_xlpm.xc,_xlfn.SEQUENCE(,10),_xlpm.xd,_xlfn.BYCOL(_xlpm.xc,_xlfn.LAMBDA(_xlpm.a,RAND())),_xlpm.xe,INDEX(_xlpm.xc,MATCH(MAX(_xlpm.xd),_xlpm.xd,0)),_xlfn.HSTACK(_xlfn._xlws.SORT(INDEX(_xlfn.SORTBY(_xlpm.xa,_xlpm.xb,1),,_xlfn.SEQUENCE(,6),1)),_xlpm.xe))","v":22},39,9,35,20,27,4]
[{"$f":"_xlfn.LET(_xlpm.xa,_xlfn.SEQUENCE(,45),_xlpm.xb,_xlfn.BYCOL(_xlpm.xa,_xlfn.LAMBDA(_xlpm.a,RAND())),_xlpm.xc,_xlfn.SEQUENCE(,10),_xlpm.xd,_xlfn.BYCOL(_xlpm.xc,_xlfn.LAMBDA(_xlpm.a,RAND())),_xlpm.xe,INDEX(_xlpm.xc,MATCH(MAX(_xlpm.xd),_xlpm.xd,0)),_xlfn.HSTACK(_xlfn._xlws.SORT(INDEX(_xlfn.SORTBY(_xlpm.xa,_xlpm.xb,1),,_xlfn.SEQUENCE(,6),1)),_xlpm.xe))","v":16},14,4,5,24,44,3]
[{"$f":"_xlfn.LET(_xlpm.xa,_xlfn.SEQUENCE(,45),_xlpm.xb,_xlfn.BYCOL(_xlpm.xa,_xlfn.LAMBDA(_xlpm.a,RAND())),_xlpm.xc,_xlfn.SEQUENCE(,10),_xlpm.xd,_xlfn.BYCOL(_xlpm.xc,_xlfn.LAMBDA(_xlpm.a,RAND())),_xlpm.xe,INDEX(_xlpm.xc,MATCH(MAX(_xlpm.xd),_xlpm.xd,0)),_xlfn.HSTACK(_xlfn._xlws.SORT(INDEX(_xlfn.SORTBY(_xlpm.xa,_xlpm.xb,1),,_xlfn.SEQUENCE(,6),1)),_xlpm.xe))","v":44},9,37,27,21,20,2]
[{"$f":"_xlfn.LET(_xlpm.xa,_xlfn.SEQUENCE(,45),_xlpm.xb,_xlfn.BYCOL(_xlpm.xa,_xlfn.LAMBDA(_xlpm.a,RAND())),_xlpm.xc,_xlfn.SEQUENCE(,10),_xlpm.xd,_xlfn.BYCOL(_xlpm.xc,_xlfn.LAMBDA(_xlpm.a,RAND())),_xlpm.xe,INDEX(_xlpm.xc,MATCH(MAX(_xlpm.xd),_xlpm.xd,0)),_xlfn.HSTACK(_xlfn._xlws.SORT(INDEX(_xlfn.SORTBY(_xlpm.xa,_xlpm.xb,1),,_xlfn.SEQUENCE(,6),1)),_xlpm.xe))","v":15},3,42,27,13,30,2]
[{"$f":"_xlfn.LET(_xlpm.xa,_xlfn.SEQUENCE(,45),_xlpm.xb,_xlfn.BYCOL(_xlpm.xa,_xlfn.LAMBDA(_xlpm.a,RAND())),_xlpm.xc,_xlfn.SEQUENCE(,10),_xlpm.xd,_xlfn.BYCOL(_xlpm.xc,_xlfn.LAMBDA(_xlpm.a,RAND())),_xlpm.xe,INDEX(_xlpm.xc,MATCH(MAX(_xlpm.xd),_xlpm.xd,0)),_xlfn.HSTACK(_xlfn._xlws.SORT(INDEX(_xlfn.SORTBY(_xlpm.xa,_xlpm.xb,1),,_xlfn.SEQUENCE(,6),1)),_xlpm.xe))","v":29},18,10,27,24,36,4]
[{"$f":"_xlfn.LET(_xlpm.xa,_xlfn.SEQUENCE(,45),_xlpm.xb,_xlfn.BYCOL(_xlpm.xa,_xlfn.LAMBDA(_xlpm.a,RAND())),_xlpm.xc,_xlfn.SEQUENCE(,10),_xlpm.xd,_xlfn.BYCOL(_xlpm.xc,_xlfn.LAMBDA(_xlpm.a,RAND())),_xlpm.xe,INDEX(_xlpm.xc,MATCH(MAX(_xlpm.xd),_xlpm.xd,0)),_xlfn.HSTACK(_xlfn._xlws.SORT(INDEX(_xlfn.SORTBY(_xlpm.xa,_xlpm.xb,1),,_xlfn.SEQUENCE(,6),1)),_xlpm.xe))","v":17},30,1,26,44,13,3]
[{"$f":"_xlfn.LET(_xlpm.xa,_xlfn.SEQUENCE(,45),_xlpm.xb,_xlfn.BYCOL(_xlpm.xa,_xlfn.LAMBDA(_xlpm.a,RAND())),_xlpm.xc,_xlfn.SEQUENCE(,10),_xlpm.xd,_xlfn.BYCOL(_xlpm.xc,_xlfn.LAMBDA(_xlpm.a,RAND())),_xlpm.xe,INDEX(_xlpm.xc,MATCH(MAX(_xlpm.xd),_xlpm.xd,0)),_xlfn.HSTACK(_xlfn._xlws.SORT(INDEX(_xlfn.SORTBY(_xlpm.xa,_xlpm.xb,1),,_xlfn.SEQUENCE(,6),1)),_xlpm.xe))","v":32},26,3,29,42,16,7]
[{"$f":"_xlfn.LET(_xlpm.xa,_xlfn.SEQUENCE(,45),_xlpm.xb,_xlfn.BYCOL(_xlpm.xa,_xlfn.LAMBDA(_xlpm.a,RAND())),_xlpm.xc,_xlfn.SEQUENCE(,10),_xlpm.xd,_xlfn.BYCOL(_xlpm.xc,_xlfn.LAMBDA(_xlpm.a,RAND())),_xlpm.xe,INDEX(_xlpm.xc,MATCH(MAX(_xlpm.xd),_xlpm.xd,0)),_xlfn.HSTACK(_xlfn._xlws.SORT(INDEX(_xlfn.SORTBY(_xlpm.xa,_xlpm.xb,1),,_xlfn.SEQUENCE(,6),1)),_xlpm.xe))","v":43},11,28,39,17,25,10]
[{"$f":"_xlfn.LET(_xlpm.xa,_xlfn.SEQUENCE(,45),_xlpm.xb,_xlfn.BYCOL(_xlpm.xa,_xlfn.LAMBDA(_xlpm.a,RAND())),_xlpm.xc,_xlfn.SEQUENCE(,10),_xlpm.xd,_xlfn.BYCOL(_xlpm.xc,_xlfn.LAMBDA(_xlpm.a,RAND())),_xlpm.xe,INDEX(_xlpm.xc,MATCH(MAX(_xlpm.xd),_xlpm.xd,0)),_xlfn.HSTACK(_xlfn._xlws.SORT(INDEX(_xlfn.SORTBY(_xlpm.xa,_xlpm.xb,1),,_xlfn.SEQUENCE(,6),1)),_xlpm.xe))","v":30},4,40,10,6,33,1]
[{"$f":"_xlfn.LET(_xlpm.xa,_xlfn.SEQUENCE(,45),_xlpm.xb,_xlfn.BYCOL(_xlpm.xa,_xlfn.LAMBDA(_xlpm.a,RAND())),_xlpm.xc,_xlfn.SEQUENCE(,10),_xlpm.xd,_xlfn.BYCOL(_xlpm.xc,_xlfn.LAMBDA(_xlpm.a,RAND())),_xlpm.xe,INDEX(_xlpm.xc,MATCH(MAX(_xlpm.xd),_xlpm.xd,0)),_xlfn.HSTACK(_xlfn._xlws.SORT(INDEX(_xlfn.SORTBY(_xlpm.xa,_xlpm.xb,1),,_xlfn.SEQUENCE(,6),1)),_xlpm.xe))","v":41},6,10,28,39,29,7]
[{"$f":"_xlfn.LET(_xlpm.xa,_xlfn.SEQUENCE(,45),_xlpm.xb,_xlfn.BYCOL(_xlpm.xa,_xlfn.LAMBDA(_xlpm.a,RAND())),_xlpm.xc,_xlfn.SEQUENCE(,10),_xlpm.xd,_xlfn.BYCOL(_xlpm.xc,_xlfn.LAMBDA(_xlpm.a,RAND())),_xlpm.xe,INDEX(_xlpm.xc,MATCH(MAX(_xlpm.xd),_xlpm.xd,0)),_xlfn.HSTACK(_xlfn._xlws.SORT(INDEX(_xlfn.SORTBY(_xlpm.xa,_xlpm.xb,1),,_xlfn.SEQUENCE(,6),1)),_xlpm.xe))","v":20},44,16,28,25,34,6]
[{"$f":"_xlfn.LET(_xlpm.xa,_xlfn.SEQUENCE(,45),_xlpm.xb,_xlfn.BYCOL(_xlpm.xa,_xlfn.LAMBDA(_xlpm.a,RAND())),_xlpm.xc,_xlfn.SEQUENCE(,10),_xlpm.xd,_xlfn.BYCOL(_xlpm.xc,_xlfn.LAMBDA(_xlpm.a,RAND())),_xlpm.xe,INDEX(_xlpm.xc,MATCH(MAX(_xlpm.xd),_xlpm.xd,0)),_xlfn.HSTACK(_xlfn._xlws.SORT(INDEX(_xlfn.SORTBY(_xlpm.xa,_xlpm.xb,1),,_xlfn.SEQUENCE(,6),1)),_xlpm.xe))","v":27},38,18,29,21,7,4]
[{"$f":"_xlfn.LET(_xlpm.xa,_xlfn.SEQUENCE(,45),_xlpm.xb,_xlfn.BYCOL(_xlpm.xa,_xlfn.LAMBDA(_xlpm.a,RAND())),_xlpm.xc,_xlfn.SEQUENCE(,10),_xlpm.xd,_xlfn.BYCOL(_xlpm.xc,_xlfn.LAMBDA(_xlpm.a,RAND())),_xlpm.xe,INDEX(_xlpm.xc,MATCH(MAX(_xlpm.xd),_xlpm.xd,0)),_xlfn.HSTACK(_xlfn._xlws.SORT(INDEX(_xlfn.SORTBY(_xlpm.xa,_xlpm.xb,1),,_xlfn.SEQUENCE(,6),1)),_xlpm.xe))","v":24},7,27,17,25,16,4]
[{"$f":"_xlfn.LET(_xlpm.xa,_xlfn.SEQUENCE(,45),_xlpm.xb,_xlfn.BYCOL(_xlpm.xa,_xlfn.LAMBDA(_xlpm.a,RAND())),_xlpm.xc,_xlfn.SEQUENCE(,10),_xlpm.xd,_xlfn.BYCOL(_xlpm.xc,_xlfn.LAMBDA(_xlpm.a,RAND())),_xlpm.xe,INDEX(_xlpm.xc,MATCH(MAX(_xlpm.xd),_xlpm.xd,0)),_xlfn.HSTACK(_xlfn._xlws.SORT(INDEX(_xlfn.SORTBY(_xlpm.xa,_xlpm.xb,1),,_xlfn.SEQUENCE(,6),1)),_xlpm.xe))","v":16},27,39,24,34,36,5]